Cogmind - Beta 13 @@@ ROGUE MODE // 2024.05.13 @ 01:54:06 Player: Occam Result: Self-destructed Performance ------------- Evolutions (7) 3500 Regions Visited (19) 3800 Robots Destroyed (340) 1700 Value Destroyed (13172) 13172 Prototype IDs (50) 1000 Alien Tech Used (0) 0 Bonus (7156) 7156 TOTAL SCORE: 30328 Bonus ------- High Alert Combat Kills 1895 Follower Combat Kills 1882 Entered DSFs 500 Aligned with FarCom 300 Met Imprinter 300 Built Enhanced Grunts 300 A7 Reached Mainframe 300 Met R17 at Cetus 500 Met R17 at Research 2000 Friendly Fire -821 Cogmind --------- Core Integrity 698/1300 Matter 290/300 Energy 565/565 System Corruption 0% Temperature Cool (0) Movement Immobile (Siege) Ox2 Location -3/Research Parts ------- > --- POWER (2) -------- Antimatter Reactor Particle Reactor > --- PROPULSION (6) --- Armored Heavy Treads > --- UTILITY (9) ------ Advanced Heat Sink Advanced Coolant Injector Huge Storage Unit Experimental Core Analyzer Centrium Medium Armor Plating Improved Hacking Suite Improved System Shield > --- WEAPON (4) ------- Nova Cannon Plasma Lance Enhanced Force Lance > --- INVENTORY (25) --- Quantum Reactor Armored Medium Treads Biometal Medium Treads Centrium Heavy Treads Compact Wheel Advanced Heat Sink Experimental Matter Compressor (500) Matter Filter Transmission Jammer Centrium Light Armor Plating Graphene Brace Improved System Shield Improved System Restoration Module High-powered Tractor Beam Improved Trap Extractor (0/6) Long-range Phase Cannon Coil Gun Railgun Advanced Datajack Power Sword Peak State ------------ > --- POWER ------------ Particle Reactor Quantum Reactor > --- PROPULSION ------- Armored Heavy Treads Armored Heavy Treads Armored Heavy Treads > --- UTILITY ---------- Advanced Heat Sink Advanced Coolant Injector Huge Storage Unit Experimental Core Analyzer Improved Cloaking Device Centrium Medium Armor Plating Improved Hacking Suite Improved System Shield Improved System Restoration Module > --- WEAPON ----------- Beamcaster Cooled Plasma Rifle Quantum Rifle Long-range Phase Cannon > --- INVENTORY -------- Quantum Reactor Armored Medium Treads Biometal Medium Treads Centrium Heavy Treads Compact Wheel Advanced Heat Sink Experimental Matter Compressor Structural Scanner Matter Filter Transmission Jammer Centrium Light Armor Plating Centrium Medium Armor Plating Graphene Brace Improved System Shield High-powered Tractor Beam Improved Trap Extractor Nova Cannon Coil Gun Railgun Advanced Datajack Power Sword Plasma Lance Enhanced Force Lance [Rating: 161] Favorites ----------- Power Improved Deuterium Engine Engine Improved Deuterium Engine Power Core Neutrino Core Reactor Particle Reactor Propulsion Armored Treads Treads Armored Treads Leg Flexi-carbon Leg Wheel Compact Wheel Hover Unit Gyrokinetic Inverter Utility Huge Storage Unit Device Cooling System Storage Huge Storage Unit Processor 0b10 Decoder Chip [Generic] Hackware Improved Hacking Suite Protection Hardened Heavy Armor Plating Weapon XL Autogun Subcomponent Energy Gun Quantum Rifle Energy Cannon Particle Cannon Ballistic Gun XL Autogun Subcomponent Ballistic Cannon Bore Cannon Launcher Grenade Launcher Special Weapon Improved Remote Datajack Slashing Weapon Katana Piercing Weapon Plasma Lance Special Melee Weapon Improved Datajack Build | -11 -10 -10 -10 -9 -8 -7 -6 -6 -6 -6 -5 -5 -5 -5 -5 -5 -4 -4 -3 ------- Run | Yrd Mat Min Exi Min Mat Fac Fac Low Low Zio Pro Fac Ext Cet Arc Hub Fac DSF Res Slots Evolved 14 | . . . . . 4 2 2 . . . . 2 . . . . 2 . 2 Power 1 | . . . . . . . . . . . . 1 . . . . . . . Propulsion 4 | . . . . . . 1 1 . . . . . . . . . 1 . 1 Utility 7 | . . . . . 2 1 1 . . . . 1 . . . . 1 . 1 Weapon 2 | . . . . . 2 . . . . . . . . . . . . . . Parts Attached 266 | 2 27 4 2 7 26 9 5 . . 2 2 31 71 4 12 . 3 2 57 Power 22 | . 2 . 1 . 3 1 . . . . . 2 5 1 2 . . . 5 Engine 11 | . 2 . 1 . 3 1 . . . . . 1 1 1 . . . . 1 Core 5 | . . . . . . . . . . . . 1 4 . . . . . . Reactor 6 | . . . . . . . . . . . . . . . 2 . . . 4 Propulsion 53 | . 6 2 . . 6 2 2 . . . . 6 19 . 4 . 1 1 4 Treads 34 | . 5 1 . . 4 2 2 . . . . 3 8 . 4 . 1 1 3 Leg 3 | . . . . . . . . . . . . . 3 . . . . . . Wheel 12 | . 1 1 . . 2 . . . . . . 2 6 . . . . . . Hover 4 | . . . . . . . . . . . . 1 2 . . . . . 1 Flight . | . . . . . . . . . . . . . . . . . . . . Utility 90 | 1 6 . . 1 12 3 3 . . . . 14 14 2 1 . 1 1 31 Device 51 | 1 3 . . . 8 2 2 . . . . 5 8 . 1 . 1 . 20 Storage 6 | . 3 . . . 1 . . . . . . 1 . . . . . . 1 Processor 3 | . . . . . . . . . . . . 2 . . . . . . 1 Hackware 6 | . . . . . 1 . 1 . . . . 2 1 . . . . . 1 Protection 24 | . . . . 1 2 1 . . . . . 4 5 2 . . . 1 8 Artifact . | . . . . . . . . . . . . . . . . . . . . Weapon 101 | 1 13 2 1 6 5 3 . . . 2 2 9 33 1 5 . 1 . 17 Energy Gun 13 | . 1 . . . 2 . . . . . . . 1 1 1 . 1 . 6 Energy Cannon 13 | . 7 2 . 2 . . . . . . . . . . . . . . 2 Ballistic Gun 36 | 1 1 . . . 3 2 . . . 1 1 7 16 . 1 . . . 3 Ballistic Cannon 1 | . . . . . . . . . . . . . 1 . . . . . . Launcher 19 | . 4 . . 3 . 1 . . . 1 . 2 8 . . . . . . Special Weapon 1 | . . . . . . . . . . . . . 1 . . . . . . Impact Weapon . | . . . . . . . . . . . . . . . . . . . . Slashing Weapon 5 | . . . . . . . . . . . . . 2 . 2 . . . 1 Piercing Weapon 4 | . . . . . . . . . . . . . . . . . . . 4 Special Melee Weapon 9 | . . . 1 1 . . . . . . 1 . 4 . 1 . . . 1 Unidentified Prototypes 12 | . . . . . . 1 . . . 1 . 1 . 1 1 . . . 7 Corrupted Parts 5 | . . . . . . . . . . . . . 1 . 3 . . . 1 System Corruption 30 | . . . . . . . . . . . . . 2 . 23 . . . 5 Parts Lost 70 | . 3 . . 1 3 . 1 . . . . 8 33 1 . . . 1 19 Power 6 | . . . . . . . . . . . . . 4 . . . . 1 1 Propulsion 18 | . 2 . . . 1 . . . . . . 4 9 . . . . . 2 Utility 26 | . . . . 1 2 . 1 . . . . 3 8 . . . . . 11 Weapon 20 | . 1 . . . . . . . . . . 1 12 1 . . . . 5 Highest Loss Streak 10 | . 2 . . 1 3 . 1 . . . . 2 10 1 . . . 1 8 To Critical Strikes . | . . . . . . . . . . . . . . . . . . . . Average Slot Usage (%) 85 | . 99 100 100 99 79 69 72 73 73 73 73 89 88 99 99 94 91 89 83 Engine 6 | . 14 14 14 14 9 7 6 6 6 6 6 6 2 3 . . . . . Core 1 | . . . . . . . . . . . . 4 5 6 4 . . . . Treads 17 | . 21 14 14 14 9 15 25 26 26 26 26 19 12 11 11 17 21 18 13 Wheel 4 | . 5 14 14 14 8 7 . . . . . 1 4 11 10 . . . . Device 13 | . 14 14 14 1 11 15 16 20 20 20 20 10 8 5 8 11 12 15 16 Storage 7 | . 14 14 14 14 9 7 6 6 6 6 6 5 5 5 5 5 5 5 4 Processor 1 | . . . . . . . . . . . . 6 . . . . . . . Hackware 4 | . . . . . 6 . 2 . . . . 3 11 12 11 11 10 10 10 Protection 6 | . . . . 12 8 7 6 6 6 6 6 6 8 15 13 11 10 10 8 Energy Gun 3 | . 8 . . . 4 . . . . . . . . 4 9 11 10 15 14 Energy Cannon 3 | . 9 26 15 16 . . . . . . . . . . . . . . . Ballistic Gun 7 | . 8 . . . 11 7 6 6 6 5 6 17 12 5 5 5 5 5 1 Naked Turns . | . . . . . . . . . . . . . . . . . . . . Heaviest Build 167 | 15 96 98 98 100 110 131 134 134 134 134 134 152 141 143 153 153 157 157 167 Greatest Support 200 | 20 40 16 16 16 20 16 88 88 88 88 88 102 103 32 131 131 158 167 200 Greatest Overweight (x) 9 | . 5 6 6 6 6 8 1 1 1 1 1 9 8 4 5 1 . . 1 Average Overweight (x) 3 | . 2 5 5 6 5 7 1 1 1 1 1 3 4 4 4 1 . . . Largest Inventory Capacity 25 | 8 25 25 25 25 25 25 25 25 25 25 25 25 25 25 25 25 25 25 25 Average Capacity 24 | 8 17 25 25 25 25 25 25 25 25 25 25 25 25 25 25 25 25 25 25 Most Carried 25 | 7 25 25 25 25 25 25 25 23 23 25 25 25 25 25 25 25 24 25 25 Average Carried 23 | 6 14 23 24 24 24 24 24 23 23 24 24 23 22 24 24 25 23 24 24 Final Capacity 25 | 8 25 25 25 25 25 25 25 25 25 25 25 25 25 25 25 25 25 25 25 Final Carried 25 | 7 23 25 25 25 25 25 23 23 23 25 25 23 25 25 25 25 23 25 21 Class Distribution -------------------- 38% | Tank 19% | Mutant 19% | Scavenger-Tank 6% | Scavenger-Skirmisher 6% | Skirmisher 5% | Scavenger-Mutant Dominant Class ---------------- Mutant | -10/Materials Mutant | -10/Mines Mutant | -10/Exiles Mutant | -9/Mines Tank | -8/Materials Tank | -7/Factory Tank | -6/Factory Tank | -6/Lower Caves Tank | -6/Lower Caves Tank | -6/Zion Tank | -5/Proximity Caves Skirmisher | -5/Factory Scavenger-Tank | -5/Extension Scavenger-Mutant | -5/Cetus Scavenger-Tank | -5/Archives Scavenger-Tank | -5/Hub_04(d) Scavenger-Tank | -4/Factory Scavenger-Tank | -4/DSF Scavenger-Tank | -3/Research Resources | -11 -10 -10 -10 -9 -8 -7 -6 -6 -6 -6 -5 -5 -5 -5 -5 -5 -4 -4 -3 ----------- Run | Yrd Mat Min Exi Min Mat Fac Fac Low Low Zio Pro Fac Ext Cet Arc Hub Fac DSF Res Matter Collected 11803 | 247 481 107 . 195 2483 973 444 230 140 . 320 2188 2441 137 210 . . 110 1097 Remotely 118 | . . . . . . . . . . . . . 118 . . . . . . Salvage Created 16764 | 168 871 250 . 253 3736 1654 785 428 140 . 686 4290 1662 181 291 . . 147 1222 Parts 813 | 8 55 21 . 13 227 69 39 17 8 . 17 200 70 7 19 . . 5 38 Haulers Intercepted 12 | . 2 . . . 5 1 1 . . . . 3 . . . . . . . Recyclers Shooed 6 | . 2 . . . . . 1 . . . . 3 . . . . . . . Parts Field Recycled . | . . . . . . . . . . . . . . . . . . . . Retrieved Matter . | . . . . . . . . . . . . . . . . . . . . Parts Self-Destructed 42 | . . . . . . . . 17 8 . 17 . . . . . . . . Prevented 3 | . . . . . . . . . . . 3 . . . . . . . . Kills | -11 -10 -10 -10 -9 -8 -7 -6 -6 -6 -6 -5 -5 -5 -5 -5 -5 -4 -4 -3 ------- Run | Yrd Mat Min Exi Min Mat Fac Fac Low Low Zio Pro Fac Ext Cet Arc Hub Fac DSF Res Combat Hostiles Destroyed 226 | . 10 3 . 11 54 23 9 8 2 . 10 47 29 1 . . . 2 17 Melee 2 | . . . . . . . . . . . . . 2 . . . . . . Guns 179 | . 8 . . . 54 22 9 8 2 . 10 44 9 . . . . 2 11 Cannons 13 | . 2 3 . 3 . . . . . . . . 1 1 . . . . 3 AOE 28 | . . . . 8 . 1 . . . . . 3 16 . . . . . . Classes Destroyed 21 | 2 7 1 . 1 4 1 1 . 1 . . . . . . . . . 3 Worker 11 | . . 1 . . 6 . . . . . . 3 1 . . . . . . Builder 27 | . 2 . . . 10 . 1 . . . . 7 7 . . . . . . Tunneler 12 | 4 2 2 . 1 . . . . . . . . 3 . . . . . . Hauler 12 | . 2 . . . 5 1 1 . . . . 3 . . . . . . . Recycler 25 | 1 3 2 . . 4 5 . . . . . 7 3 . . . . . . Mechanic 1 | . 1 . . . . . . . . . . . . . . . . . . Operator 17 | . 1 . . . 3 1 . . . . . 2 2 . 8 . . . . Watcher 20 | . 2 . . . 5 . 3 . . . . 5 3 1 . . . . 1 Swarmer 21 | . 3 2 . 3 5 2 . 3 . . . . 3 . . . . . . Grunt 107 | . 7 1 . 7 36 13 5 2 1 . 6 21 8 . . . . . . Brawler 6 | . . . . . 1 1 . 1 . . 2 1 . . . . . . . Duelist 7 | . . . . 1 1 1 . 1 . . 1 2 . . . . . . . Protector 1 | . . . . . 1 . . . . . . . . . . . . . . Sentry 29 | . . . . . 10 4 2 1 . . 1 2 7 . . . . . 2 Demolisher 3 | . . . . . . . . . . . . . . . . . . . 3 Hunter 11 | . . . . . . . 1 . . . . 3 4 . . . . 1 2 Programmer 23 | . . . . . . 2 1 . . . . 18 2 . . . . . . Heavy 2 | . . . . . 1 . . . . . . . . . . . . 1 . Behemoth 3 | . . . . . . . . . 1 . . . 2 . . . . . . Cetus Guard 1 | . . . . . . . . . . . . . . 1 . . . . . Striker 9 | . . . . . . . . . . . . . . . . . . . 9 Executioner 1 | . . . . . . . . . . . . . . . . . . . 1 Thug 3 | . . . . . . . . . . . . . 2 1 . . . . . Guerrilla 1 | . . . . . . . . . . . . . 1 . . . . . . Best Kill Streak 14 | 3 4 2 . 4 10 9 5 8 1 . 6 14 11 2 2 . . 2 3 Combat Bots Only 10 | . 3 1 . 3 7 6 4 8 1 . 6 10 6 1 . . . 2 3 Max Kills in Single Turn 4 | 1 1 1 . 2 2 2 1 1 1 . 1 4 4 2 1 . . 1 1 Gunslinging . | . . . . . . . . . . . . . . . . . . . . Exploded 3 | . . . . 2 . 1 . . . . . 2 3 . . . . . . Melee 1 | . . . . . . . . . . . . . 1 . . . . . . Uniques/NPCs Destroyed . | . . . . . . . . . . . . . . . . . . . . Combat | -11 -10 -10 -10 -9 -8 -7 -6 -6 -6 -6 -5 -5 -5 -5 -5 -5 -4 -4 -3 -------- Run | Yrd Mat Min Exi Min Mat Fac Fac Low Low Zio Pro Fac Ext Cet Arc Hub Fac DSF Res Hostile Shots Fired 1156 | . 72 26 . 15 102 55 30 10 12 . 17 225 275 19 3 . . 36 259 Missed 317 | . 22 8 . 2 34 15 11 3 3 . 6 57 84 4 1 . . 17 50 Damage Taken 19113 | . 735 151 . 236 802 327 167 81 155 . 140 3346 4216 402 47 . . 402 7906 Core 1841 | . 107 26 . 33 64 22 4 . 15 . 58 162 740 . . . . 8 602 Absorbed by Shields 793 | . . . . . 279 134 67 32 54 . 51 65 12 24 . . . . 75 Reduced by Siege Mode 937 | . . . . . . . . . . . . . . . . . . . 937 Regen/Repaired (Parts) 230 | . 53 . . . . . . . . . . . . . . . . . 177 Core Remaining (%) 73 | 100 . . . 33 88 96 . . . . 90 . . . . 9 . 99 . Volleys Fired 811 | 9 78 23 . 17 168 50 30 14 14 . 28 184 107 7 19 . . 7 56 Largest 4 | 2 2 2 . 2 4 1 1 1 1 . 1 4 4 2 3 . . 4 4 Hottest 357 | 70 136 143 . 143 175 60 60 60 60 . 60 100 100 108 204 . . 279 357 Shots Fired 1649 | 18 154 46 . 20 208 50 30 14 14 . 28 571 198 16 53 . . 27 202 Gun 1460 | 18 114 . . . 208 50 30 14 14 . 28 568 149 11 53 . . 27 176 Cannon 127 | . 36 46 . 8 . . . . . . . . 6 5 . . . . 26 Launcher 62 | . 4 . . 12 . . . . . . . 3 43 . . . . . . Special . | . . . . . . . . . . . . . . . . . . . . Kinetic 1163 | 9 57 . . . 185 50 30 14 14 . 28 568 151 13 18 . . 7 19 Thermal 420 | 9 93 46 . 8 23 . . . . . . . . 3 35 . . 20 183 Explosive 62 | . 4 . . 12 . . . . . . . 3 43 . . . . . . Electromagnetic 4 | . . . . . . . . . . . . . 4 . . . . . . Robot Hit Streak 40 | 6 13 5 . 7 11 16 11 13 13 . 12 22 16 5 12 . . 6 40 Robot Miss Streak 8 | 2 5 8 . 1 6 4 3 2 2 . 5 7 4 4 5 . . 2 7 Penetration Max 2 | . . . . . . . . . . . . 1 . 1 1 . . 2 . Secondary Targets 18 | . . . . . . . . . . . . 9 3 . . . . 2 4 Max Gunslinging Chain 1 | . . . . . . . . . . . . 1 1 . . . . 1 1 Shots Hit Robots 1173 | 10 80 18 4 12 179 47 30 14 14 . 28 369 142 8 45 . . 18 155 Core Hits 707 | 6 38 8 . 21 135 51 28 14 7 . 25 175 124 5 14 . . 9 47 Critical Kills 3 | . . . . . . . . . . . . . 1 1 . . . . 1 Critical Parts Destroyed 5 | . . . . . . . . . . . . 3 2 . . . . . . Critical Strikes 17 | . 1 . . . 1 . . . . . . 3 5 2 . . . 1 4 Burn 6 | . 1 . . . 1 . . . . . . . . . . . . 1 3 Meltdown 1 | . . . . . . . . . . . . . . . . . . . 1 Destroy 9 | . . . . . . . . . . . . 3 4 2 . . . . . Sever 1 | . . . . . . . . . . . . . 1 . . . . . . Melee Attacks 59 | . . . 4 . . . . . . . 2 . 32 . 10 . . . 11 Impact . | . . . . . . . . . . . . . . . . . . . . Slashing 21 | . . . . . . . . . . . . . 13 . 6 . . . 2 Piercing 7 | . . . . . . . . . . . . . . . . . . . 7 Sneak Attacks 37 | . . . 4 . . . . . . . 2 . 21 . 8 . . . 2 Combat Hostiles . | . . . . . . . . . . . . . . . . . . . . Follow-up Attacks . | . . . . . . . . . . . . . . . . . . . . Damage Inflicted 42723 | 148 1083 410 . 894 7834 2865 1896 811 900 . 1881 10879 6552 260 1477 . . 533 4300 Guns 33084 | 148 791 . . . 7834 2613 1581 811 900 . 1881 9608 1817 186 973 . . 533 3408 Cannons 1705 | . 292 410 . 166 . . . . . . . . 65 74 . . . . 698 Explosions 6823 | . . . . 728 . 252 315 . . . . 1260 4268 . . . . . . Melee 1074 | . . . . . . . . . . . . . 402 . 504 . . . 168 Ramming 37 | . . . . . . . . . . . . 11 . . . . . . 26 Kinetic 28419 | 60 374 . . . 7646 2613 1581 811 900 . 1881 9608 1798 219 399 . . 200 329 Thermal 6505 | 88 709 410 . 166 188 . . . . . . 219 . 41 574 . . 333 3777 Explosive 6335 | . . . . 728 . 252 315 . . . . 772 4268 . . . . . . Electromagnetic 353 | . . . . . . . . . . . . 269 84 . . . . . . Impact . | . . . . . . . . . . . . . . . . . . . . Slashing 906 | . . . . . . . . . . . . . 402 . 504 . . . . Piercing 168 | . . . . . . . . . . . . . . . . . . . 168 Highest Corruption 44 | . . . . . . 2 . . . . . 16 21 21 44 44 . . 8 Average Corruption 12 | . . . . . . 2 . . . . . 8 17 21 21 44 . . 3 Corruption Purged 17 | . . . . . . . . . . . . . . . . . . . 17 Corruption Blocked . | . . . . . . . . . . . . . . . . . . . . Effects 237 | . . . . . . 6 . . . . . 83 94 20 27 1 . . 6 Message Errors 61 | . . . . . . 1 . . . . . 17 31 6 6 . . . . Matter Fused 47 | . . . . . . 3 . . . . . 17 15 4 5 . . . 3 Heat Flow Errors 19 | . . . . . . 1 . . . . . 11 6 1 . . . . . Energy Discharges 36 | . . . . . . 1 . . . . . 12 12 2 7 1 . . 1 Parts Rejected 4 | . . . . . . . . . . . . . 3 1 . . . . . Parts Fused 4 | . . . . . . . . . . . . 2 . 1 1 . . . . Data Loss (minor) 25 | . . . . . . . . . . . . 9 10 2 3 . . . 1 Data Loss (major) 11 | . . . . . . . . . . . . 4 2 . 4 . . . 1 Misfires 7 | . . . . . . . . . . . . 2 3 2 . . . . . Alerts 3 | . . . . . . . . . . . . . 3 . . . . . . Misdirections 4 | . . . . . . . . . . . . 1 2 1 . . . . . Weapon Failures 16 | . . . . . . . . . . . . 8 7 . 1 . . . . Overload Shots . | . . . . . . . . . . . . . . . . . . . . Overflow Damage 287 | . . 7 . . . 39 73 . . . . 59 70 . 33 . . . 6 Projectiles 13 | . . 7 . . . . . . . . . . . . . . . . 6 Explosions 221 | . . . . . . 39 73 . . . . 59 50 . . . . . . Melee 53 | . . . . . . . . . . . . . 20 . 33 . . . . Knockbacks . | . . . . . . . . . . . . . . . . . . . . Impact . | . . . . . . . . . . . . . . . . . . . . Kinetic . | . . . . . . . . . . . . . . . . . . . . Secondary . | . . . . . . . . . . . . . . . . . . . . Self-Inflicted Damage 275 | . 25 . . 39 . . . . . . . 101 110 . . . . . . Shots 9 | . 1 . . 1 . . . . . . . 3 4 . . . . . . Rammed 4 | . . . . . . . . . . . . 1 . . . . . . 3 Targets Rammed 4 | . . . . . . . . . . . . 1 . . . . . . 3 Kicked . | . . . . . . . . . . . . . . . . . . . . Crushed . | . . . . . . . . . . . . . . . . . . . . Highest Temperature 435 | 45 222 216 . 151 399 248 153 153 207 . 252 375 252 110 312 . . 90 435 Average Temperature 95 | 21 53 75 . 57 115 47 53 67 91 . 105 110 74 45 101 . . 32 130 Received Heat Transfer 1974 | . 321 . . 87 304 94 51 6 36 . 57 357 531 58 . . . . 72 Effects 19 | . . . . . 10 . . . . . 1 4 . . . . . . 4 Shutdowns 5 | . . . . . 2 . . . . . . 1 . . . . . . 2 Energy Bleed 6 | . . . . . 3 . . . . . . 2 . . . . . . 1 Interference 5 | . . . . . 3 . . . . . 1 1 . . . . . . . Short Circuit 1 | . . . . . 1 . . . . . . . . . . . . . . Damage (minor) 2 | . . . . . 1 . . . . . . . . . . . . . 1 Siege Activations 7 | . . . . . . . . . . . . . . . . . . . 7 Total Turns 211 | . . . . . . . . . . . . . . . . . . . 211 Longest Duration 69 | . . . . . . . . . . . . . . . . . . . 69 Robots Corrupted . | . . . . . . . . . . . . . . . . . . . . Combat Hostiles . | . . . . . . . . . . . . . . . . . . . . Parts Fried . | . . . . . . . . . . . . . . . . . . . . Impact Corruptions . | . . . . . . . . . . . . . . . . . . . . Robots Melted 3 | . . . . . . . . . . . . . . . . . . . 3 Combat Hostiles 3 | . . . . . . . . . . . . . . . . . . . 3 Parts Melted 19 | . 5 1 . . . . . . . . . . 1 . . . . . 12 Heat Transferred 10883 | 259 1924 703 . 259 518 . . . . . . 200 . 74 851 . . 592 5503 Parts Sabotaged . | . . . . . . . . . . . . . . . . . . . . Parts Stolen . | . . . . . . . . . . . . . . . . . . . . Parts Stripped . | . . . . . . . . . . . . . . . . . . . . Power Chain Reactions 1 | . . . . . . . . . . . . 1 . . . . . . . Alert | -11 -10 -10 -10 -9 -8 -7 -6 -6 -6 -6 -5 -5 -5 -5 -5 -5 -4 -4 -3 ------- Run | Yrd Mat Min Exi Min Mat Fac Fac Low Low Zio Pro Fac Ext Cet Arc Hub Fac DSF Res Peak Influence 1171 | 25 210 166 . 277 1171 1009 452 . . . . 913 713 403 371 66 32 417 346 Initial 494 | . 16 15 . . . 494 364 . . . . . 370 231 81 66 32 22 234 Average 338 | 13 66 35 . 97 695 757 335 . . . . 327 467 228 275 66 32 245 132 Maximum Alert Level 4 | . 1 . . 1 4 3 2 . . . . 3 3 2 1 . . 2 1 Low Security (%) 43 | 100 99 100 . 85 12 . 10 . . . . 36 . 7 33 100 100 32 80 Level 1 24 | . . . . 14 9 . 72 . . . . 38 32 81 66 . . 52 19 Level 2 14 | . . . . . 18 23 17 . . . . 10 66 10 . . . 14 . Level 3 14 | . . . . . 41 76 . . . . . 15 . . . . . . . Level 4 2 | . . . . . 17 . . . . . . . . . . . . . . Level 5 . | . . . . . . . . . . . . . . . . . . . . High Security . | . . . . . . . . . . . . . . . . . . . . Max Security . | . . . . . . . . . . . . . . . . . . . . Sterilizations 1 | . . . . . 1 . . . . . . . . . . . . . . Squads Dispatched 52 | . 2 1 . . 11 9 3 . . . 1 12 6 . . . . 2 5 Investigation 13 | . 1 1 . . 2 2 2 . . . . 2 1 . . . . . 2 Extermination 10 | . . . . . . 2 1 . . . . 7 . . . . . . . Reinforcement 19 | . 1 . . . 5 1 . . . . . 2 5 . . . . 2 3 Assault 4 | . . . . . 1 1 . . . . 1 1 . . . . . . . Garrison 6 | . . . . . 3 3 . . . . . . . . . . . . . Intercept . | . . . . . . . . . . . . . . . . . . . . Searches Triggered . | . . . . . . . . . . . . . . . . . . . . Construction Impeded 5 | . . . . . 2 . . . . . . . 3 . . . . . . Haulers Reinforced 3 | . . . . . . 1 . . . . . 1 . . . . . . 1 Active Scanning Responses . | . . . . . . . . . . . . . . . . . . . . Cargo Convoy Interrupts . | . . . . . . . . . . . . . . . . . . . . Stealth | -11 -10 -10 -10 -9 -8 -7 -6 -6 -6 -6 -5 -5 -5 -5 -5 -5 -4 -4 -3 --------- Run | Yrd Mat Min Exi Min Mat Fac Fac Low Low Zio Pro Fac Ext Cet Arc Hub Fac DSF Res Distress Signals 17 | . 1 . . . 3 . . . . . . 1 5 2 . . . . 5 Communications Jammed . | . . . . . . . . . . . . . . . . . . . . Distress Signals . | . . . . . . . . . . . . . . . . . . . . Times Spotted 344 | . 17 8 . 9 60 24 13 8 2 . 16 60 55 10 19 . . 7 36 Peak Tracking Total 12 | . 3 3 . 3 5 4 4 5 1 . 12 8 7 5 2 . . 4 9 Tactical Retreats 8 | . . . . . . . . . . . 3 . 4 . . . . . 1 Traps | -11 -10 -10 -10 -9 -8 -7 -6 -6 -6 -6 -5 -5 -5 -5 -5 -5 -4 -4 -3 ------- Run | Yrd Mat Min Exi Min Mat Fac Fac Low Low Zio Pro Fac Ext Cet Arc Hub Fac DSF Res Traps Triggered 8 | . 2 . . . 1 1 . . . . . . 1 . . . . . 3 Indirectly . | . . . . . . . . . . . . . . . . . . . . Trap Hack Attempts 1 | . . . . . . . . . . . . . 1 . . . . . . Triggered . | . . . . . . . . . . . . . . . . . . . . Disarmed . | . . . . . . . . . . . . . . . . . . . . Reprogrammed 1 | . . . . . . . . . . . . . 1 . . . . . . Reused 1 | . . . . . . . . . . . . . 1 . . . . . . Traps Extracted . | . . . . . . . . . . . . . . . . . . . . Installed . | . . . . . . . . . . . . . . . . . . . . Triggered 4 | . . . . . . . . . 3 . . . 1 . . . . . . Machines | -11 -10 -10 -10 -9 -8 -7 -6 -6 -6 -6 -5 -5 -5 -5 -5 -5 -4 -4 -3 ---------- Run | Yrd Mat Min Exi Min Mat Fac Fac Low Low Zio Pro Fac Ext Cet Arc Hub Fac DSF Res Machines Disabled 34 | . 3 . . 2 8 3 3 1 . . . 4 6 . 3 . . 1 . Max in Single Turn 2 | . 1 . . 2 2 1 2 1 . . . 1 2 . 1 . . 1 . Garrison Access 1 | . . . . . . . . . . . . . . . . . . . 1 Machines Repaired . | . . . . . . . . . . . . . . . . . . . . Machines Dismantled . | . . . . . . . . . . . . . . . . . . . . Machines Sabotaged . | . . . . . . . . . . . . . . . . . . . . Overloaded Fab Kills . | . . . . . . . . . . . . . . . . . . . . Hacking | -11 -10 -10 -10 -9 -8 -7 -6 -6 -6 -6 -5 -5 -5 -5 -5 -5 -4 -4 -3 --------- Run | Yrd Mat Min Exi Min Mat Fac Fac Low Low Zio Pro Fac Ext Cet Arc Hub Fac DSF Res Machines Accessed 56 | . 9 1 2 . 6 6 5 1 . . . 8 11 1 . . 1 . 5 Terminals 40 | . 7 . . . 6 4 3 . . . . 5 11 1 . . 1 . 2 Fabricators 1 | . . . . . . . 1 . . . . . . . . . . . . Repair Stations 4 | . 1 . . . . . . . . . . 1 . . . . . . 2 Recycling Units 2 | . 1 . . . . . . . . . . 1 . . . . . . . Scanalyzers 3 | . . . . . . 1 1 . . . . 1 . . . . . . . Garrison Access 2 | . . . . . . 1 . . . . . . . . . . . . 1 Total Hacks 135 | . 22 1 2 . 24 17 17 1 . . . 18 21 3 . . 1 . 8 Successful 59 | . 10 1 2 . 9 5 7 1 . . . 7 11 1 . . 1 . 4 Failed 75 | . 11 . . . 15 12 10 . . . . 11 10 2 . . . . 4 Catastrophic 19 | . 4 . . . 3 2 1 . . . . 3 5 . . . . . 1 Database Lockouts 1 | . 1 . . . . . . . . . . . . . . . . . . Manual 57 | . 11 . 1 . 12 7 5 . . . . 7 11 1 . . . . 2 Terminals 103 | . 18 . . . 24 12 10 . . . . 11 21 3 . . 1 . 3 Fabricators 3 | . . . . . . . 3 . . . . . . . . . . . . Repair Stations 9 | . 2 . . . . . . . . . . 3 . . . . . . 4 Recycling Units 5 | . 2 . . . . . . . . . . 3 . . . . . . . Scanalyzers 8 | . . . . . . 3 4 . . . . 1 . . . . . . . Garrison Access 3 | . . . . . . 2 . . . . . . . . . . . . 1 Terminal Hacks 35 | . 5 1 2 . 6 2 1 1 . . . 3 11 1 . . 1 . 1 Record 1 | . . . 1 . . . . . . . . . . . . . . . . Robot Analysis 3 | . 1 . . . 2 . . . . . . . . . . . . . . Open Door 11 | . . 1 . . . . . 1 . . . 1 7 1 . . . . . Open DSF 2 | . . . . . . . . . . . . . . . . . 1 . 1 Branch Access Points 2 | . . . . . . . 1 . . . . 1 . . . . . . . Terminal Index 2 | . 1 . . . 1 . . . . . . . . . . . . . . Alert Level 2 | . . . . . 1 1 . . . . . . . . . . . . . Unreport Threat 6 | . . . . . 1 1 . . . . . 1 3 . . . . . . Locate Traps 3 | . 2 . . . 1 . . . . . . . . . . . . . . Recall Reinforcements 1 | . . . . . . . . . . . . . 1 . . . . . . Hauler Manifests 1 | . 1 . . . . . . . . . . . . . . . . . . Derelict Proto ID Bank 1 | . . . 1 . . . . . . . . . . . . . . . . Fabricator Hacks 2 | . . . . . . . 2 . . . . . . . . . . . . Network Status 1 | . . . . . . . 1 . . . . . . . . . . . . Build 1 | . . . . . . . 1 . . . . . . . . . . . . Repair Station Hacks 5 | . 2 . . . . . . . . . . 1 . . . . . . 2 Scan Component 3 | . 1 . . . . . . . . . . 1 . . . . . . 1 Repair 2 | . 1 . . . . . . . . . . . . . . . . . 1 Recycling Unit Hacks . | . . . . . . . . . . . . . . . . . . . . Scanalyzer 4 | . . . . . . 1 3 . . . . . . . . . . . . Insert Component 3 | . . . . . . 1 2 . . . . . . . . . . . . Analyze 1 | . . . . . . . 1 . . . . . . . . . . . . Garrison Access Hacks 1 | . . . . . . . . . . . . . . . . . . . 1 Seal Access 1 | . . . . . . . . . . . . . . . . . . . 1 Unauthorized Hacks 12 | . 3 . . . 3 2 1 . . . . 3 . . . . . . . Terminals 10 | . 3 . . . 3 2 1 . . . . 1 . . . . . . . Botnet 8 | . 2 . . . 2 2 1 . . . . 1 . . . . . . . Operators 2 | . 1 . . . 1 . . . . . . . . . . . . . . Fabricators . | . . . . . . . . . . . . . . . . . . . . Repair Stations . | . . . . . . . . . . . . . . . . . . . . Recycling Units 2 | . . . . . . . . . . . . 2 . . . . . . . Reject 1 | . . . . . . . . . . . . 1 . . . . . . . Recyclers 1 | . . . . . . . . . . . . 1 . . . . . . . Scanalyzers . | . . . . . . . . . . . . . . . . . . . . Garrison Access . | . . . . . . . . . . . . . . . . . . . . Data Cores Recovered 2 | . . . . . . 1 . . . . . 1 . . . . . . . Used 1 | . . . . . . 1 . . . . . . . . . . . . . Hacking Detections 40 | . 9 . . . 6 6 5 . . . . 6 4 1 . . . . 3 Full Trace Events 9 | . 1 . . . 1 2 2 . . . . 2 1 . . . . . . Feedback Events . | . . . . . . . . . . . . . . . . . . . . Feedback Blocked . | . . . . . . . . . . . . . . . . . . . . Robot Schematics Acquired . | . . . . . . . . . . . . . . . . . . . . Robots Built 1 | . . . . . . . 1 . . . . . . . . . . . . Authchips . | . . . . . . . . . . . . . . . . . . . . Time 81 | . . . . . . . 81 . . . . . . . . . . . . Total Robot Build Rating 1 | . . . . . . . 1 . . . . . . . . . . . . Part Schematics Acquired 1 | . . . . . . . 1 . . . . . . . . . . . . Parts Built . | . . . . . . . . . . . . . . . . . . . . Authchips . | . . . . . . . . . . . . . . . . . . . . Time . | . . . . . . . . . . . . . . . . . . . . Total Part Build Rating . | . . . . . . . . . . . . . . . . . . . . Parts Repaired 2 | . 1 . . . . . . . . . . . . . . . . . 1 Time 62 | . 26 . . . . . . . . . . . . . . . . . 36 Parts Recycled . | . . . . . . . . . . . . . . . . . . . . Recycled Matter . | . . . . . . . . . . . . . . . . . . . . Retrieved Matter . | . . . . . . . . . . . . . . . . . . . . Retrieved Components . | . . . . . . . . . . . . . . . . . . . . Parts Scanalyzed 2 | . . . . . . 1 1 . . . . . . . . . . . . Part Schematics Acquired 1 | . . . . . . . 1 . . . . . . . . . . . . Parts Damaged . | . . . . . . . . . . . . . . . . . . . . Bothacking | -11 -10 -10 -10 -9 -8 -7 -6 -6 -6 -6 -5 -5 -5 -5 -5 -5 -4 -4 -3 ------------ Run | Yrd Mat Min Exi Min Mat Fac Fac Low Low Zio Pro Fac Ext Cet Arc Hub Fac DSF Res Used RIF Installer . | . . . . . . . . . . . . . . . . . . . . Robots Hacked 6 | . . . 4 . . . . . . . . . . . 1 . . . 1 Non-combat 5 | . . . 3 . . . . . . . . . . . 1 . . . 1 Combat 1 | . . . 1 . . . . . . . . . . . . . . . . Robot Hacks Applied 10 | . . . 4 . . . . . . . . . . . 4 . . . 2 parse_system 6 | . . . 4 . . . . . . . . . . . 1 . . . 1 no_distress 1 | . . . . . . . . . . . . . . . 1 . . . . check_alert 3 | . . . . . . . . . . . . . . . 2 . . . 1 Relay Couplers Released . | . . . . . . . . . . . . . . . . . . . . Fabnet Peak Effective % . | . . . . . . . . . . . . . . . . . . . . Robots Rewired 14 | . . . . . . . . . . . 2 . 12 . . . . . . Allies Hacked . | . . . . . . . . . . . . . . . . . . . . Hacks Repelled . | . . . . . . . . . . . . . . . . . . . . Allies | -11 -10 -10 -10 -9 -8 -7 -6 -6 -6 -6 -5 -5 -5 -5 -5 -5 -4 -4 -3 -------- Run | Yrd Mat Min Exi Min Mat Fac Fac Low Low Zio Pro Fac Ext Cet Arc Hub Fac DSF Res Total Allies 39 | . . 3 . 3 . . 1 . . 3 2 . 22 5 . . . . . Largest Group 9 | . . 3 . 3 3 . 1 . . 3 4 . 9 8 6 5 5 5 5 Highest-Rated Group 633 | . . 70 . 40 40 . 10 . . 110 131 . 379 633 621 468 468 468 468 Highest-Rated Ally 159 | . . 31 . 16 16 . 10 . . 51 51 . 159 159 153 96 96 96 96 Total Orders 2 | . . . . . . . . . . . . . . . 2 . . . . STAY 1 | . . . . . . . . . . . . . . . 1 . . . . FOLLOW 1 | . . . . . . . . . . . . . . . 1 . . . . Ally Attacks 320 | . . 22 . . 17 . . . . . 35 . 120 47 24 . . 41 14 Total Damage 8342 | . . 212 . . 166 . . . . . 712 . 2261 1863 805 . . 1730 593 Kills 43 | . . 4 . . 1 . . . . . 3 . 14 8 4 . . 5 4 Allies Corrupted 1 | . . . . . . . . . . . . . . . . . . . 1 Allies Melted . | . . . . . . . . . . . . . . . . . . . . Intel | -11 -10 -10 -10 -9 -8 -7 -6 -6 -6 -6 -5 -5 -5 -5 -5 -5 -4 -4 -3 ------- Run | Yrd Mat Min Exi Min Mat Fac Fac Low Low Zio Pro Fac Ext Cet Arc Hub Fac DSF Res Robot Analysis Total 3 | . 1 . . . 2 . . . . . . . . . . . . . . Derelict Logs Recovered 7 | . . 1 . . . . . 2 2 1 1 . . . . . . . . Drone Launches . | . . . . . . . . . . . . . . . . . . . . Drone Recoveries . | . . . . . . . . . . . . . . . . . . . . Decoded 0b10 Intel 91 | . . . . . . . . . . . . 80 11 . . . . . . Traps 1 | . . . . . . . . . . . . . 1 . . . . . . Emergency Access 2 | . . . . . . . . . . . . . 2 . . . . . . Items 64 | . . . . . . . . . . . . 60 4 . . . . . . Machines 17 | . . . . . . . . . . . . 15 2 . . . . . . Patrols 5 | . . . . . . . . . . . . 3 2 . . . . . . Guards 2 | . . . . . . . . . . . . 2 . . . . . . . Exploration | -11 -10 -10 -10 -9 -8 -7 -6 -6 -6 -6 -5 -5 -5 -5 -5 -5 -4 -4 -3 ------------- Run | Yrd Mat Min Exi Min Mat Fac Fac Low Low Zio Pro Fac Ext Cet Arc Hub Fac DSF Res Turns Passed 22841 | 88 1519 1195 502 1167 2946 991 923 1003 659 2197 820 3365 1951 437 551 24 12 146 2345 Spaces Moved 9666 | 22 713 619 278 473 1278 415 344 400 262 886 317 1246 727 219 235 11 6 67 1148 Core . | . . . . . . . . . . . . . . . . . . . . Treads 4847 | . 372 . . . 2 . 344 400 262 886 317 771 240 . 21 11 6 67 1148 Legs 60 | 22 38 . . . . . . . . . . . . . . . . . . Wheels 4759 | . 303 619 278 473 1276 415 . . . . . 475 487 219 214 . . . . Hover . | . . . . . . . . . . . . . . . . . . . . Flight . | . . . . . . . . . . . . . . . . . . . . Fastest Speed 120 | 120 120 175 175 190 190 190 247 247 247 247 247 220 130 160 160 240 162 162 166 Average Speed 204 | 120 164 178 176 190 190 213 247 247 247 247 247 237 204 160 189 240 162 163 166 Slowest Speed 570 | 120 175 190 190 190 570 220 247 247 247 247 247 250 410 160 560 240 162 166 250 Overloaded Moves . | . . . . . . . . . . . . . . . . . . . . Propulsion Burnouts . | . . . . . . . . . . . . . . . . . . . . Robots Hopped . | . . . . . . . . . . . . . . . . . . . . Cave-ins Triggered . | . . . . . . . . . . . . . . . . . . . . Exploration Rate (%) 57 | 2 86 99 63 85 89 11 12 64 47 86 51 28 82 77 87 5 . 76 38 Regions Visited 19 Branch Regions 11 Pre-discovered Areas 4 | . . 1 1 . . . . . . 2 . . . . . . . . . Known Exits Taken 5 | . . . . . . . 1 . . 1 . 1 . . . 1 1 . . Unknown Exits Taken 13 | 1 1 1 1 1 1 1 . 1 1 . 1 . 1 1 1 . . . . Scrap Searched 8 | . . 1 . 1 . . . 2 2 1 1 . . . . . . . . Spaces Dug 50 | . 18 . . 17 . . . . . . . 13 . . . . . . 2 Terrain Destroyed 591 | . 26 2 . 70 122 40 14 2 2 . 3 58 234 1 7 . . . 10 Melee 2 | . . . . . . . . . . . . . . . . . . . 2 Projectile 181 | . . 2 . 1 122 12 5 2 2 . 3 8 8 1 7 . . . 8 AOE 407 | . 26 . . 69 . 28 9 . . . . 49 226 . . . . . . Terrain Rammed . | . . . . . . . . . . . . . . . . . . . . Walls Destroyed . | . . . . . . . . . . . . . . . . . . . . Machines Disabled . | . . . . . . . . . . . . . . . . . . . . Actions | -11 -10 -10 -10 -9 -8 -7 -6 -6 -6 -6 -5 -5 -5 -5 -5 -5 -4 -4 -3 --------- Run | Yrd Mat Min Exi Min Mat Fac Fac Low Low Zio Pro Fac Ext Cet Arc Hub Fac DSF Res Total 12008 | 65 909 665 289 719 1754 531 418 416 275 901 358 1551 1036 294 299 10 8 89 1421 Wait 877 | 31 47 3 . 222 230 34 37 3 . . 2 69 49 50 2 . . 1 97 Move 9647 | 21 712 618 277 472 1277 414 343 399 261 885 316 1245 726 218 234 10 5 66 1148 Hop . | . . . . . . . . . . . . . . . . . . . . Pick Up 142 | 1 26 8 1 1 25 8 2 . . 6 3 7 20 6 7 . . 5 16 Fast Attach 90 | 1 6 . . . 4 3 . . . 2 1 10 33 4 3 . . 1 22 Attach 97 | 1 5 . 1 1 10 4 3 . . . 1 15 29 . 4 . 2 . 21 Detach 60 | 1 4 . 1 . 1 5 . . . 1 1 10 19 1 3 . . 1 12 Swap 79 | . 16 4 1 6 12 2 2 . . . . 6 9 . 5 . 1 1 14 Drop 141 | . 15 9 4 . 27 11 1 . . 7 4 4 11 8 12 . . 7 21 Fire 811 | 9 78 23 . 17 168 50 30 14 14 . 28 184 107 7 19 . . 7 56 Melee 59 | . . . 4 . . . . . . . 2 . 32 . 10 . . . 11 Ram . | . . . . . . . . . . . . . . . . . . . . Kick . | . . . . . . . . . . . . . . . . . . . . Crush 4 | . . . . . . . . . . . . 1 . . . . . . 3 Escape Stasis . | . . . . . . . . . . . . . . . . . . . . Rewire . | . . . . . . . . . . . . . . . . . . . . Trap 1 | . . . . . . . . . . . . . 1 . . . . . . Miscellaneous . | . . . . . . . . . . . . . . . . . . . . Route ------- -11/Scrapyard -10/Materials (discovered 4 exits: [*Mat x2] / *Min x2) -10/Mines (discovered 3 exits: [*Mat x2] / *Exi) -10/Exiles -9/Mines -8/Materials (discovered 3 exits: *Fac x3) -7/Factory -6/Factory (discovered 2 exits: *Low x2) -6/Lower Caves -6/Lower Caves (discovered 2 exits: *Fac / [*Zio]) -6/Zion -5/Proximity Caves -5/Factory (discovered 6 exits: Fac x2 / Upp x2 / *Ext x2) -5/Extension (discovered 2 exits: *Fac / *Cet) -5/Cetus (discovered 2 exits: *Fac / [*Arc]) -5/Archives (discovered 3 exits: *Fac / [*Hub x2]) -5/Hub_04(d) -4/Factory -4/DSF -3/Research History --------- Turn | Location | Event 3 | -11/Scrapyard | Discovered new exit (range 3) 89 | -11/Scrapyard | Entered Materials 264 | -10/Materials | Discovered new exit (range 5) 322 | -10/Materials | Build established: Mutant 377 | -10/Materials | Discovered new exit (range 13) 469 | -10/Materials | Repaired Med. Laser 615 | -10/Materials | Discovered new exit (range 7) 946 | -10/Materials | Central database locked down 1318 | -10/Materials | Discovered new exit (range 9) 1608 | -10/Materials | Entered Mines 1611 | -10/Mines | Received a Mining Laser from a helpful Derelict 1767 | -10/Mines | Deemed a non-threat by the Exiles lab entrance 1767 | -10/Mines | Discovered new exit (range 5) 1960 | -10/Mines | Received a Rocket Launcher from a helpful Derelict 2143 | -10/Mines | Learned location of Storage (-9) 2323 | -10/Mines | Discovered new exit (range 5) 2349 | -10/Mines | Discovered new exit (range 12) 2370 | -10/Mines | Core integrity fell below 50% 2445 | -10/Mines | Met a Derelict shopkeep closing up shop 2803 | -10/Mines | Entered Exiles 2851 | -10/Exiles | Met 8R-AWN 2887 | -10/Exiles | Met EX-HEX 2974 | -10/Exiles | Met EX-DEC 2985 | -10/Exiles | Learned location of Zion (-6) 3049 | -10/Exiles | Met EX-BIN 3080 | -10/Exiles | Aligned with FarCom system 3082 | -10/Exiles | Given EX-Vault access code 3122 | -10/Exiles | Opened EX-Vault 3138 | -10/Exiles | Found XL Autogun Array 3174 | -10/Exiles | Warned to stay clear of 0b10 Research branches 3198 | -10/Exiles | Exiles lab attacked by MAIN.C 3284 | -10/Exiles | Discovered new exit (range 14) 3305 | -10/Exiles | Left Exiles lab with XL Autogun Array 3305 | -10/Exiles | Entered Mines 3421 | -9/Mines | A weapon hastily lodged in a ceiling crevice suddenly fell to the ground 3679 | -9/Mines | Assembled infested the area 3684 | -9/Mines | Assisted by a Guerilla fighting off Assembled 4203 | -9/Mines | Discovered new exit (range 10) 4294 | -9/Mines | Assisted by bots powering up and referring to "LRC-V3" 4472 | -9/Mines | Entered Materials 4472 | -8/Materials | Accompanied by 3 allies 4472 | -8/Materials | Evolved 4 slots: Utility x2, Weapon x2 4772 | -8/Materials | Build established: Tank 4909 | -8/Materials | Destroyed 7 combat bots 4936 | -8/Materials | Discovered new exit (range 15) 4969 | -8/Materials | Lost 3 parts (1n2u) 5730 | -8/Materials | Discovered new exit (range 12) 6072 | -8/Materials | First assault squad dispatched 6158 | -8/Materials | Destroyed 7 combat bots 6418 | -8/Materials | Garrison activated, responded to threat 6530 | -8/Materials | Destroyed 7 combat bots 6618 | -8/Materials | Sterilization system engaged 6618 | -8/Materials | Non-combat units ordered to evacuate 6718 | -8/Materials | Combat units ordered to evacuate 6918 | -8/Materials | Ambient heat levels rising (+10) 6933 | -8/Materials | Discovered new exit (range 9) 7001 | -8/Materials | Build established: Scavenger-Skirmisher 7068 | -8/Materials | Ambient heat levels rising (+10) 7218 | -8/Materials | Ambient heat levels rising (+10) 7368 | -8/Materials | Ambient heat levels rising (+10) 7418 | -8/Materials | Entered Factory 7418 | -7/Factory | Evolved 2 slots: Propulsion x1, Utility x1 7497 | -7/Factory | Garrison activated, responded to threat 7716 | -7/Factory | Build established: Tank 7818 | -7/Factory | First assault squad dispatched 8210 | -7/Factory | Discovered new exit (range 12) 8409 | -7/Factory | Entered another Factory area 8409 | -6/Factory | Evolved 2 slots: Propulsion x1, Utility x1 8718 | -6/Factory | Build established: Scavenger-Tank 8938 | -6/Factory | Fabricated T-07 Excavator (x1) 9160 | -6/Factory | Identified exit to Lower Caves 9161 | -6/Factory | Build established: Tank 9332 | -6/Factory | Entered Lower Caves 9334 | -6/Lower Caves | Attracted the attention of an 0b10 outpost 9367 | -6/Lower Caves | Destroyed 8 combat bots 9522 | -6/Lower Caves | Learned Factory trap positions 9746 | -6/Lower Caves | Encountered a Warlord checkpoint 9905 | -6/Lower Caves | Learned Factory emergency access door positions 10298 | -6/Lower Caves | Discovered new exit (range 6) 10335 | -6/Lower Caves | Entered another Lower Caves area 10343 | -6/Lower Caves | Discovered new exit (range 13) 10368 | -6/Lower Caves | Spotted B-75 Beast 10378 | -6/Lower Caves | Destroyed B-75 Beast 10406 | -6/Lower Caves | Learned location of 1 exit from Factory 10540 | -6/Lower Caves | Learned location of 1 exit from Factory 10972 | -6/Lower Caves | Discovered new exit (range 10) 10994 | -6/Lower Caves | Entered Zion 11308 | -6/Zion | Identified exit to Proximity Caves 11357 | -6/Zion | Learned location of Quarantine (-3) 11453 | -6/Zion | Given A8's code to call for help 11508 | -6/Zion | Received a visual enhancement algorithm 12175 | -6/Zion | Rebuked by Imprinter 12477 | -6/Zion | Found Prototype Launcher 12477 | -6/Zion | Identified Gui. Missile Launcher 12639 | -6/Zion | Acquired unknown access codes intercepted by a Zionite 12740 | -6/Zion | Gained Derelict followers 13191 | -6/Zion | Entered Proximity Caves 13191 | -5/Proximity Caves | Accompanied by 3 allies 13273 | -5/Proximity Caves | Attracted the attention of an 0b10 checkpoint 13430 | -5/Proximity Caves | Attracted the attention of an 0b10 outpost 13587 | -5/Proximity Caves | Lost 4 allies 13796 | -5/Proximity Caves | Learned location of 1 exit from Factory 13994 | -5/Proximity Caves | Discovered new exit (range 6) 14011 | -5/Proximity Caves | Entered Factory 14011 | -5/Factory | Evolved 2 slots: Power x1, Utility x1 14012 | -5/Factory | Identified exit to Factory 14012 | -5/Factory | Identified exit to Extension 14013 | -5/Factory | Loaded intel: 82 trap records 14318 | -5/Factory | Build established: Scavenger-Tank 14908 | -5/Factory | Build established: Tank 15475 | -5/Factory | Build established: Skirmisher 15753 | -5/Factory | Identified exit to Upper Caves 16573 | -5/Factory | Build established: Scavenger-Skirmisher 16585 | -5/Factory | System corruption reached 10% 16883 | -5/Factory | Destroyed 10 combat bots 16886 | -5/Factory | Build established: Skirmisher 17311 | -5/Factory | First assault squad dispatched 17337 | -5/Factory | Build established: Hacker-Tank 17376 | -5/Factory | Entered Extension 17486 | -5/Extension | Rescued a captive Derelict 17487 | -5/Extension | Rescued a captive Derelict 17520 | -5/Extension | Rescued a captive Derelict 17624 | -5/Extension | Lost 3 allies 17659 | -5/Extension | Rescued a captive Derelict 17660 | -5/Extension | Rescued a captive Derelict 17785 | -5/Extension | Rescued a captive Derelict 17787 | -5/Extension | Rescued a captive Derelict 18019 | -5/Extension | Build established: Scavenger-Tank 18366 | -5/Extension | Spotted B-75 Beast 18381 | -5/Extension | Destroyed B-75 Beast 18426 | -5/Extension | Disrupted transfer network 18438 | -5/Extension | Lost 5 allies 18440 | -5/Extension | Spotted B-75 Beast 18443 | -5/Extension | Destroyed B-75 Beast 18468 | -5/Extension | Lost 4 parts (2n2u) 18590 | -5/Extension | Lost 4 parts (1n2u1w) 18678 | -5/Extension | Core integrity fell below 50% 18695 | -5/Extension | Lost 10 parts (1p3n1u5w) 18758 | -5/Extension | Lost 4 parts (1p1n2w) 18865 | -5/Extension | Core integrity fell below 20% 18903 | -5/Extension | Lost 6 parts (1p2n3w) 18978 | -5/Extension | Rescued a captive Derelict 19092 | -5/Extension | Build established: Scavenger-Mutant 19182 | -5/Extension | Rescued A7 19257 | -5/Extension | Rescued a captive Derelict 19305 | -5/Extension | Discovered exit to Factory (range 10) 19307 | -5/Extension | Discovered new exit (range 6) 19327 | -5/Extension | Entered Cetus 19327 | -5/Cetus | Accompanied by 8 allies (A7) 19332 | -5/Cetus | Acquired a Cetus Manufacturing Module code from A7 19349 | -5/Cetus | Spotted Cetus Guard 19349 | -5/Cetus | Spotted Cetus Guard 19351 | -5/Cetus | Spotted Cetus Guard 19353 | -5/Cetus | Spotted Cetus Guard 19362 | -5/Cetus | Allies destroyed Cetus Guard 19370 | -5/Cetus | Destroyed Cetus Guard 19385 | -5/Cetus | Allies destroyed Cetus Guard 19391 | -5/Cetus | Allies destroyed Cetus Guard 19401 | -5/Cetus | Lost 7 allies 19486 | -5/Cetus | Escorted A7 to Cetus Mainframe 19506 | -5/Cetus | Started Cetus Manufacturing Module 19531 | -5/Cetus | Manufactured an Enhanced Grunt 19556 | -5/Cetus | Manufactured an Enhanced Grunt 19581 | -5/Cetus | Manufactured an Enhanced Grunt 19598 | -5/Cetus | Discovered new exit (range 16) 19606 | -5/Cetus | Manufactured an Enhanced Grunt 19631 | -5/Cetus | Manufactured an Enhanced Grunt 19657 | -5/Cetus | Spotted Cetus Guard 19658 | -5/Cetus | Spotted Cetus Guard 19663 | -5/Cetus | Spotted Cetus Guard 19663 | -5/Cetus | Spotted Cetus Guard 19671 | -5/Cetus | Allies destroyed Cetus Guard 19675 | -5/Cetus | Allies destroyed Cetus Guard 19675 | -5/Cetus | Allies destroyed Cetus Guard 19679 | -5/Cetus | Allies destroyed Cetus Guard 19682 | -5/Cetus | Discovered exit to Factory (range 16) 19690 | -5/Cetus | Met Revision 17 19764 | -5/Cetus | Entered Archives 19764 | -5/Archives | Accompanied by 6 allies (A7) 19769 | -5/Archives | Received a hacking code to weaken MAIN.C 19892 | -5/Archives | Discovered new exit (range 16) 19995 | -5/Archives | Discovered exit to Factory (range 15) 20094 | -5/Archives | Discovered new exit (range 13) 20190 | -5/Archives | Build established: Scavenger-Tank 20308 | -5/Archives | System corruption reached 30% 20315 | -5/Archives | Entered Hub_04(d) 20315 | -5/Hub_04(d) | Accompanied by 5 allies 20315 | -5/Hub_04(d) | Discovered exit to Factory (range 10) 20339 | -5/Hub_04(d) | Entered Factory 20339 | -4/Factory | Accompanied by 5 allies 20339 | -4/Factory | Evolved 2 slots: Propulsion x1, Utility x1 20350 | -4/Factory | Identified exit to DSF 20351 | -4/Factory | Entered DSF 20351 | -4/DSF | Accompanied by 5 allies 20379 | -4/DSF | Additional patrols routed to DSF 20455 | -4/DSF | Discovered new exit (range 16) 20497 | -4/DSF | Entered Research 20497 | -3/Research | Accompanied by 5 allies 20497 | -3/Research | Evolved 2 slots: Propulsion x1, Utility x1 20697 | -3/Research | Revision forces began assault on 0b10 20805 | -3/Research | Lost 3 allies 20819 | -3/Research | Met up with Revision 17++ 21149 | -3/Research | Repaired Centrium Medium Armor Plating 21197 | -3/Research | Research terminal network offline 21729 | -3/Research | Spotted Striker 21731 | -3/Research | Spotted Striker 21737 | -3/Research | Destroyed Striker 21740 | -3/Research | Spotted Striker 21743 | -3/Research | Spotted Striker 21752 | -3/Research | Destroyed Striker 21776 | -3/Research | Destroyed Striker 21808 | -3/Research | Lost 5 parts (1p3u1w) 21844 | -3/Research | Found Enh. Force Lance 22180 | -3/Research | Spotted Striker 22181 | -3/Research | Destroyed Striker 22260 | -3/Research | Spotted Striker 22261 | -3/Research | Spotted Striker 22266 | -3/Research | Spotted Executioner 22289 | -3/Research | Lost 3 allies 22289 | -3/Research | Spotted Striker 22291 | -3/Research | Destroyed Executioner 22298 | -3/Research | Destroyed Striker 22321 | -3/Research | Destroyed Striker 22331 | -3/Research | Destroyed Striker 22354 | -3/Research | Found Exp. Core Analyzer 22408 | -3/Research | Spotted Striker 22432 | -3/Research | Destroyed Striker 22448 | -3/Research | Lost 3 parts (3u) 22712 | -3/Research | Build established: Scavenger-Skirmisher 22792 | -3/Research | Spotted Striker 22803 | -3/Research | Spotted Striker 22826 | -3/Research | Spotted Striker 22830 | -3/Research | Destroyed Striker 22842 | -3/Research | Self-destructed Last Messages --------------- 22809_ D-83 Annihilator critical meltdown. 22809_ Adv. Launcher Guidance Computer melted. 22809_ Switching to secondary target: D-83 Annihilator. 22812_ Beamcaster destroyed. 22813_ Destroyed Imp. Shock Absorption System. 22813_ D-83 Annihilator suffers critical hit (Meltdown). 22813_ Prototype Reactor melted. 22815_ C-30 ARC bursts open, deploying its payload. 22815_ S-43 Plague unfolds itself. 22820_ Cld. Plasma Rifle destroyed. 22823_ Centrium Medium Armor Plating destroyed. 22823_ Arm. Heavy Treads destroyed. 22828_ Critical hit (Impale). 22830_ Structural Scanner destroyed. 22830_ Striker destroyed. 22839_ Imp. Cloaking Device destroyed. 22840_ Quantum Rifle destroyed. 22840_ C-30 ARC bursts open, deploying its payload. 22840_ H-77 Assassin unfolds itself. 22840_ Penetrated by Slug. Map ----- +----------------------------------------------------+ | ?????????????????????????????????????????????????? | | ?????????????????????????????????##############??? | | ?????????????????????????????????##############??? | | ?????????????????????????????????# ##??? | | ????????????????????????????????## ##??? | | ????????????????????????????????##""" ##??? | | ????????????????????????????????##""" ##### | | ???????????????????????????????? #""" ##### | | ???????????????????????????????? # # | | ??????????????????????????? # + # | | ??????????????????????????? # #""" # | | ??????????????????????????? # #""" + | | ??????????????? ?????? # #""" # | | ??????????????? ?????####### # # | | ????????? ???? ???? # + | | ?????????#### ? ????? # # | | ?????????## ### ?? ??????? ############# | | ???????##### #= ############# | | ???????##### ### ######## ##?????????## | | ???????## ! ## # ############# | | ???????"" ################# | | ???????"" h [%= | | ???????"" h% = == | | ???????T ! !! =% | | ???????"" ! [%[ | | ????????" @%* %=######+########## | | ???????"" % sKKs ### ###### | | ???????## * ### ##??## | | ???????## ss s ### ##??## | | ???????## [ ### """ + | | ???????## ###! """" ###### | | ????????############## ### """" ###### | | ????????#############; ** #### """ ##??## | | ???????????????????? *! #### ##??## | | ???????????????????? * #### ##???? | | ??????????????????? % ##############???? | | ????????????????? # ! ##### ???? | | ????????????????? # =%! ##???????????????? | | ????????????????? # = ##???????????????? | | ????????????????? # ##########???????????????? | | ??????????????????? # # #########???????????????? | | ??????????????????? # ???????????????????????? | | ????????????????????? ???????????????????????? | | ????????????????????? !??????????????????????????? | | ?????????????????????????????????????????????????? | | ?????????????????????????????????????????????????? | | ?????????????????????????????????????????????????? | | ?????????????????????????????????????????????????? | | ?????????????????????????????????????????????????? | | ?????????????????????????????????????????????????? | +----------------------------------------------------+ Best States ------------- Heat Dissipation 103 Coolant Potential 100 Energy Generation 43 Energy Capacity 590 Matter Stores 300 Matter Capacity 300 Sight Range 16 Terrain Scan Density 10 Jamming Range 12 Cloak Strength 3 Armor Coverage 1350 Resistance: EM 15 Evasion (%) 55 Core Analysis 8 Recoil Reduction 10 Matter Filtering 30 Particle Charging 25 Salvage Targeting 3 Offensive Hacking 24 Defensive Hacking 12 Authchip Count 1 Item Schematics ----------------- Lgt. Assault Rifle | -6/Factory | Scanalyzed Robot Schematics ------------------ None Fabricated ------------ T-07 Excavator | x1 | -6/Factory | Preloaded Alien Tech Used ----------------- None Achievements -------------- None Challenges ------------ None Game ------ Seed GrenadeScatterFilter Manual? 0 Play Time 03:13:08 Cumulative 308.2 hours Start 2024.05.10 @ 00:50:52 End 2024.05.13 @ 01:54:06 Sessions 7 Manual Loads 0 Difficulty Rogue Special Mode None Game No. 185 Rogue 41 Adventurer 144 Explorer 0 Win Type - Total 4 Types 2/0/1/1/0/0/0/0/0 Lore% 64 Gallery% 77 Achievement% 64 Wizard Run 0 Options --------- Layout 0 ASCII 0 Keyboard 0 Movement Mouse Keybinds 0 Fullscreen 2 Font 20/SmallcapsGlow Map View 66x50 Zoom Use 0% Tactical HUD 1 Map Filters NONE Filters NONE Steam X RUN: 60b48176-f7b3-4cab-81ff-5c10dc312533